bitfinex-derivatives/quotes_ETHF0:USTF0_20250405
["timestamp","ask_amount","ask_price","bid_price","bid_amount"]
[1743879841518,5.43249,1795.8,1795.7,0.7535811]
[1743879841723,0.77993,1795.7,1795.6,0.0083633]
[1743879841924,2.89043,1795.7,1795.6,0.76192504]
[1743879843923,2.1105,1795.7,1795.6,0.76192504]
[1743879844125,2.1105,1795.7,1795.6,1.54189504]
[1743879844527,2.1105,1795.7,1795.6,2.94529504]
[1743879845029,2.1105,1795.7,1795.6,2.16532504]
[1743879845235,2.1105,1795.7,1795.6,2.16476991]
[1743879845433,2.1105,1795.7,1795.6,2.94473991]
[1743879846129,2.1105,1795.7,1795.6,2.16476991]
[1743879846628,2.89043,1795.7,1795.6,2.16476991]
[1743879846831,2.89043,1795.7,1795.6,0.76136991]
[1743879850532,2.1105,1795.7,1795.6,0.76136991]
[1743879850732,2.89043,1795.7,1795.6,0.76101526]
[1743879852436,2.1105,1795.7,1795.6,0.76092063]
[1743879853033,2.89043,1795.7,1795.6,0.76092063]
[1743879853235,2.1105,1795.7,1795.6,1.54089063]
[1743879853828,2.89043,1795.7,1795.6,0.76092063]
[1743879855435,1.5034,1795.8,1795.6,1.54088063]
[1743879855635,1.5034,1795.8,1795.7,0.75255733]
[1743879857133,0.77993,1795.7,1795.6,0.0083633]
[1743879857338,3.01123,1795.7,1795.6,0.76103961]
[1743879857839,3.01123,1795.7,1795.6,0.0083633]
[1743879860244,3.01123,1795.7,1795.6,0.76174733]
[1743879861436,3.01123,1795.7,1795.6,0.84296817]
[1743879861638,3.01123,1795.7,1795.6,0.84374008]
[1743879864240,3.01123,1795.7,1795.6,0.84413631]
[1743879865342,3.01123,1795.7,1795.6,0.84432013]
[1743879867141,3.01123,1795.7,1795.6,0.84443315]
[1743879874345,3.01123,1795.7,1795.6,0.84452867]
[1743879874948,3.01123,1795.7,1795.6,0.84452313]
[1743879877050,3.01123,1795.7,1795.6,0.84460571]
[1743879878150,3.01123,1795.7,1795.6,0.84464533]
[1743879883652,3.01123,1795.7,1795.6,0.84488114]
[1743879884553,6.21903,1795.7,1795.6,0.84488114]
[1743879885148,0.78011,1795.3,1795.2,3.2078]
[1743879886053,2.23681,1795.3,1795.2,3.2078]
[1743879894558,0.78015,1795.2,1795.1,4.6388633]
[1743879895960,0.78015,1795.2,1795.1,5.4190533]
[1743879896161,0.78015,1795.2,1795.1,4.6388633]
[1743879896363,0.78015,1795.2,1795.1,1.4310633]
[1743879897063,0.78015,1795.2,1795.1,2.17890793]
[1743879897661,0.78015,1795.2,1795.1,0.75620793]
[1743879898065,0.78015,1795.2,1795.1,0.0083633]
[1743879898269,0.78015,1795.2,1795.1,0.7563506]
[1743879898469,3.98795,1795.2,1795.1,0.0083633]
[1743879901968,0.78015,1795.2,1795.1,0.0083633]
[1743879902175,3.98795,1795.2,1795.1,0.0083633]
[1743879905274,0.78015,1795.2,1795.1,0.0083633]
[1743879905480,3.98795,1795.2,1795.1,0.0083633]
[1743879907776,3.98795,1795.2,1795.1,3.3e-06]
[1743879907983,6.48795,1795.2,1795.1,3.3e-06]
[1743879908179,0.7805,1794.4,1794.3,3.2078]
[1743879908375,0.7805,1794.4,1794.3,3.95489475]
[1743879908575,0.78048,1794.5,1794.3,7.23543475]
[1743879908780,0.78048,1794.5,1794.4,0.74709475]
[1743879909780,0.78048,1794.5,1794.4,2.95189475]
[1743879910180,0.78048,1794.5,1794.4,2.95175229]
[1743879910479,0.78044,1794.6,1794.4,3.73225229]
[1743879910683,0.78044,1794.6,1794.5,2.25365229]
[1743879913882,0.78044,1794.6,1794.5,2.25340198]
[1743879914491,0.78044,1794.6,1794.5,0.74670198]
[1743879914989,0.78044,1794.6,1794.5,2.20060198]
[1743879915183,3.98814,1794.8,1794.5,2.20060198]
[1743879915385,0.78031,1794.9,1794.7,0.78036]
[1743879915583,0.78031,1794.9,1794.8,2.93536098]
[1743879921100,0.78031,1794.9,1794.8,2.93524305]
[1743879923190,2.25031,1794.9,1794.8,2.93524305]
[1743879923395,2.97141,1794.9,1794.8,2.93524305]
[1743879927699,2.25031,1794.9,1794.8,2.93524305]
[1743879928295,2.25031,1794.9,1794.8,2.1889]
[1743879928596,2.25031,1794.9,1794.8,2.93665121]
[1743879930206,2.25031,1794.9,1794.8,2.93669372]
[1743879935108,2.25031,1794.9,1794.8,0.74779372]
[1743879935607,0.78032,1794.8,1794.7,0.7536]
[1743879935806,3.05242,1794.8,1794.7,1.50167833]
[1743879936810,3.05242,1794.8,1794.7,0.74807833]
[1743879937505,6.26022,1794.8,1794.7,0.74822219]
[1743879938911,0.7805,1794.4,1794.3,4.6668633]
[1743879939111,0.7805,1794.4,1794.3,5.41526253]
[1743879939312,0.7805,1794.4,1794.3,5.41532678]
[1743879940311,0.7805,1794.4,1794.3,2.20752678]
[1743879940511,0.7805,1794.4,1794.3,5.41545463]
[1743879941012,0.7805,1794.4,1794.3,5.4154624]
[1743879942912,0.7805,1794.4,1794.3,5.41543926]
[1743879943110,2.2154,1794.4,1794.3,5.41543926]
[1743879943812,2.2154,1794.4,1794.3,5.41540646]
[1743879944415,1.4349,1794.4,1794.3,6.19594646]
[1743879944815,1.4349,1794.4,1794.3,6.19598637]
[1743879945812,1.48519,1794.5,1794.3,6.19598637]
[1743879946117,1.48519,1794.5,1794.4,2.24148307]
[1743879946616,1.48519,1794.5,1794.4,2.24139669]
[1743879948417,1.48519,1794.5,1794.4,2.24124826]
[1743879950319,1.48519,1794.5,1794.4,2.24120847]
[1743879952011,1.48519,1794.5,1794.4,1.4929]
[1743879952209,1.48519,1794.5,1794.4,2.24113164]
[1743879953019,1.48519,1794.5,1794.4,2.24109376]
[1743879953719,0.78049,1794.5,1794.4,2.96029376]
[1743879953919,0.78049,1794.5,1794.4,2.96027604]
[1743879955724,0.78049,1794.5,1794.4,2.96029466]
[1743879959429,1.4089,1794.6,1794.4,2.96042213]
[1743879959430,0.78044,1794.6,1794.4,2.96042213]
[1743879959627,0.78039,1794.7,1794.5,3.64705213]
[1743879959931,0.78036,1794.8,1794.6,2.95073213]
[1743879960132,0.78037,1794.7,1794.6,0.78041]
[1743879960332,0.78037,1794.7,1794.6,1.52847291]
[1743879960526,0.78037,1794.7,1794.6,0.74806291]
[1743879961034,0.78037,1794.7,1794.6,0.74822314]
[1743879961526,2.22807,1794.7,1794.6,0.74822314]
[1743879962432,0.78041,1794.6,1794.5,3.9643]
[1743879962632,2.23541,1794.6,1794.5,4.7127313]
[1743879962934,0.78039,1794.7,1794.5,4.7127313]
[1743879963134,3.2078,1794.9,1794.6,1.5288313]
[1743879963332,0.78032,1794.8,1794.7,0.7484313]
[1743879963733,2.17572,1794.8,1794.7,0.7484313]
[1743879965636,0.78032,1794.8,1794.7,0.7484313]
[1743879966034,0.78032,1794.8,1794.7,0.7484594]
[1743879966637,2.30302,1794.8,1794.7,0.7484594]
[1743879967639,0.78032,1794.8,1794.7,0.7484594]
[1743879967938,0.78032,1794.8,1794.7,0.74828856]
[1743879970637,2.26712,1794.8,1794.7,0.74828856]
[1743879971741,2.26712,1794.8,1794.7,0.74782114]
[1743879972740,2.26712,1794.8,1794.7,0.74785654]
[1743879973336,2.26712,1794.8,1794.7,0.74783547]
[1743879975140,2.26712,1794.8,1794.7,0.74757959]
[1743879976834,0.78041,1794.6,1794.5,3.2078]
[1743879977044,0.78041,1794.6,1794.5,3.9555411]
[1743879977443,2.27241,1794.6,1794.5,3.9555411]
[1743879979047,2.27241,1794.6,1794.5,0.7477411]
[1743879982350,0.7805,1794.4,1794.3,0.0083633]
[1743879982645,0.7805,1794.4,1794.3,0.75606215]
[1743879983249,1.5235,1794.4,1794.3,0.75606215]
[1743879984148,1.5235,1794.4,1794.3,0.0083633]
[1743879984345,2.2346,1794.4,1794.3,0.75588746]
[1743879986052,2.2346,1794.4,1794.3,0.75575157]
[1743879989754,2.2346,1794.4,1794.3,0.75531525]
[1743879990453,0.78045,1794.5,1794.3,1.53583525]
[1743879990656,3.98823,1794.6,1794.4,3.68421195]
[1743879990850,0.78043,1794.6,1794.5,2.15305195]
[1743879991246,2.24823,1794.6,1794.5,2.15305195]
[1743879993460,2.24823,1794.6,1794.5,2.15289103]
[1743879998569,2.24823,1794.6,1794.5,2.22897136]
[1743880000268,2.24823,1794.6,1794.5,2.22917253]
[1743880000670,2.24823,1794.6,1794.5,2.22918344]
[1743880007973,2.24823,1794.6,1794.5,2.2301998]
[1743880011671,2.24823,1794.6,1794.5,0.8240998]
[1743880013477,2.24823,1794.6,1794.5,0.82439644]
[1743880015267,2.24823,1794.6,1794.5,0.82442398]
[1743880017182,2.24823,1794.6,1794.5,0.82447799]
[1743880017481,0.7805,1794.4,1794.3,0.0083633]
[1743880017783,0.78064,1794.1,1794.0,0.78067]
[1743880017971,0.78064,1794.1,1794.0,2.22862553]
[1743880018983,0.78064,1794.1,1794.0,2.2283353]
[1743880021680,0.78064,1794.1,1794.0,3.0090053]
[1743880021880,1.5198633,1794.2,1794.0,3.0090053]
[1743880022082,0.78063,1794.1,1793.9,5.5004433]
[1743880022381,0.78063,1794.1,1794.0,0.74770114]
[1743880023075,0.7889833,1794.2,1794.0,1.52836114]
[1743880023378,0.78063,1794.1,1794.0,0.78067]
[1743880023883,0.78063,1794.1,1794.0,1.52801204]
[1743880024879,0.78063,1794.1,1794.0,0.74730737]
[1743880029188,0.78063,1794.1,1794.0,0.74703344]
[1743880029688,1.5010733,1794.2,1794.0,1.52768344]
[1743880029882,1.5010733,1794.2,1794.1,0.74703344]
[1743880032694,1.5010733,1794.2,1794.1,1.52766344]
[1743880033693,1.5010733,1794.2,1794.1,0.74703344]
[1743880034187,2.2415733,1794.2,1794.1,0.74703344]
[1743880034687,2.2415733,1794.2,1794.1,0.74709593]
[1743880036495,2.2415733,1794.2,1794.1,0.7471879]
[1743880038898,0.78063,1794.1,1794.0,2.18614]
[1743880039098,0.78063,1794.1,1794.0,2.93350073]
[1743880039890,2.2415833,1794.2,1794.0,2.15286073]
[1743880040095,2.2415833,1794.2,1794.1,0.74746147]
[1743880040299,2.2415433,1794.2,1794.1,2.14796147]
[1743880040808,1.4609633,1794.2,1794.1,2.92859147]
[1743880041105,0.0083633,1794.2,1794.1,2.92859147]
[1743880041706,0.7889433,1794.2,1794.1,2.92859147]
[1743880041907,0.7889433,1794.2,1794.1,2.18113]
[1743880042207,0.7889433,1794.2,1794.1,2.92885773]
[1743880043608,0.0083633,1794.2,1794.1,2.92885773]
[1743880044509,0.0083633,1794.2,1794.1,5.42885773]
[1743880045602,0.0083633,1794.2,1794.1,5.42915293]
[1743880046207,0.0083633,1794.2,1794.1,2.92915293]
[1743880047504,0.0083633,1794.2,1794.1,2.92919898]
[1743880047706,0.0083633,1794.2,1794.1,6.13699898]
[1743880049407,0.0083633,1794.2,1794.1,6.13663255]
[1743880056516,0.0083633,1794.2,1794.1,6.13571852]
[1743880057214,0.0083633,1794.2,1794.1,2.92791852]
[1743880057717,0.0083633,1794.2,1794.1,6.13571852]
[1743880058316,0.0083633,1794.2,1794.1,6.13570941]
[1743880060121,0.0083633,1794.2,1794.1,6.13581048]
[1743880062119,0.0083633,1794.2,1794.1,6.1358525]
[1743880064613,1.5067633,1794.2,1794.1,6.1358525]
[1743880065421,1.5067633,1794.2,1794.1,4.7353525]
[1743880067517,1.5067633,1794.2,1794.1,4.73572144]
[1743880069723,2.2873433,1794.2,1794.1,0.74729144]
[1743880070016,4.7873433,1794.2,1794.1,0.74729144]
[1743880071220,0.78065,1794.1,1793.9,3.9968733]
[1743880071411,1.453,1794.0,1793.9,3.9968733]
[1743880071615,2.2065,1794.0,1793.9,4.74476508]
[1743880073016,2.2065,1794.0,1793.9,4.74469283]
[1743880073622,2.2065,1794.0,1793.9,1.53689283]
[1743880074813,2.2065,1794.0,1793.9,1.53665344]
[1743880076617,2.2065,1794.0,1793.9,1.53641129]
[1743880077323,0.7542633,1794.2,1794.1,0.78063]
[1743880077526,2.8588633,1794.2,1794.1,1.52796799]
[1743880078319,2.8588633,1794.2,1794.1,0.78063]
[1743880078526,2.8588633,1794.2,1794.1,1.52778116]
[1743880081028,1.3984633,1794.2,1794.1,1.52778116]
[1743880081324,1.3984633,1794.2,1794.1,3.67648116]
[1743880085027,1.3984633,1794.2,1794.1,2.92933]
[1743880085223,1.3984633,1794.2,1794.1,3.67654207]
[1743880090533,1.3984633,1794.2,1794.1,3.67700688]
[1743880091834,0.0083633,1794.2,1794.1,3.67700688]
[1743880092337,0.0083633,1794.2,1794.1,3.67703781]
[1743880094140,0.0083633,1794.2,1794.1,6.88483781]
[1743880097939,1.5429633,1794.2,1794.1,6.88526117]
[1743880099541,0.0083633,1794.2,1794.1,6.88526117]
[1743880099742,0.0083633,1794.2,1794.1,6.88527454]
[1743880103344,0.0083633,1794.2,1794.1,6.88543335]
[1743880107047,0.0083633,1794.2,1794.1,3.6780878]
[1743880107339,0.0083633,1794.2,1794.1,6.1316878]
[1743880107535,1.4590633,1794.2,1794.1,4.7371878]
[1743880107735,1.4590633,1794.2,1794.1,1.5293878]
[1743880107934,2.2396433,1794.2,1794.1,0.7487578]
[1743880108748,2.2396433,1794.2,1794.1,0.74912042]
[1743880108946,7.9474433,1794.2,1794.1,0.74912042]
[1743880110545,0.78067,1794.1,1793.9,0.7890733]
[1743880110744,1.50287,1794.0,1793.9,0.7890733]
[1743880110943,2.25017,1794.0,1793.9,1.53783584]
[1743880111147,2.25017,1794.0,1793.9,0.75688621]
[1743880114248,2.25017,1794.0,1793.9,0.75623617]
[1743880116151,2.25017,1794.0,1793.9,0.75637184]
[1743880116754,5.45797,1794.0,1793.9,0.0083633]
[1743880117552,7.95797,1794.0,1793.9,0.0083633]
[1743880117753,8.392974,1794.0,1793.9,0.0083633]
[1743880120653,0.78089,1793.5,1793.4,1.5039]
[1743880120950,3.2078,1793.5,1793.0,2.2349]
[1743880121145,0.78106,1793.1,1793.0,1.5039]
[1743880121343,0.78106,1793.1,1793.0,2.25107533]
[1743880121544,1.4858,1793.2,1793.0,2.25107392]
[1743880121851,2.26682,1793.2,1793.1,0.74717392]
[1743880122259,1.4858,1793.2,1792.9,4.7467833]
[1743880122450,1.4858,1793.1,1793.0,2.94693733]
[1743880122653,1.4858,1793.1,1793.0,2.16582733]
[1743880122846,2.26686,1793.1,1793.0,2.16582733]
[1743880123356,2.26686,1793.1,1793.0,0.74620578]
[1743880124356,1.4858,1793.1,1792.9,6.1660133]
[1743880124555,1.4858,1793.1,1792.9,2.9582133]
[1743880124747,2.26686,1793.1,1793.0,0.74586728]
[1743880124951,1.4858,1793.1,1793.0,0.74586728]
[1743880125151,1.4858,1793.1,1793.0,2.25016728]
[1743880125352,1.4858,1793.1,1793.0,1.5043]
[1743880125554,1.4858,1793.1,1793.0,2.25016097]
[1743880125755,1.4858,1793.1,1793.0,3.03127097]
[1743880126257,1.4858,1793.1,1793.0,3.03123942]
[1743880126653,1.4858,1793.1,1793.0,2.28541]
[1743880126853,1.4858,1793.1,1793.0,3.03123221]
[1743880127055,2.26686,1793.1,1793.0,1.5043]
[1743880128157,1.4858,1793.1,1793.0,1.5043]
[1743880128359,2.26686,1793.1,1793.0,1.5043]
[1743880128555,2.26686,1793.1,1793.0,2.25007566]
[1743880128763,1.4858,1793.1,1793.0,2.25008829]
[1743880129154,1.4858,1793.1,1793.0,1.5043]
[1743880129361,2.26686,1793.1,1793.0,1.5043]
[1743880131655,1.4858,1793.1,1793.0,1.5043]
[1743880131861,3.2161633,1793.3,1793.1,0.78105]
[1743880132061,0.0083633,1793.3,1793.2,2.20372]
[1743880132562,0.0083633,1793.3,1793.2,2.94874739]
[1743880132762,0.0083633,1793.3,1793.2,2.20372]
[1743880132955,0.0083633,1793.3,1793.2,2.9486623]
[1743880141271,0.0083633,1793.3,1793.2,2.95072134]
[1743880142574,0.0083633,1793.3,1793.2,3.67512134]
[1743880143078,0.0083633,1793.3,1793.2,3.67531525]
[1743880144864,0.0083633,1793.3,1793.2,3.67553141]
[1743880145064,0.7495,1793.7,1793.3,1.95242]
[1743880145268,2.1817,1793.8,1793.7,0.7808]
[1743880145675,2.1817,1793.8,1793.7,1.52808146]
[1743880145877,2.1817,1793.8,1793.7,3.66718146]
[1743880149679,1.4234,1793.8,1793.7,3.66718146]
[1743880149879,0.7578633,1793.9,1793.8,0.78076]
[1743880150071,2.1871633,1793.9,1793.8,3.02234146]
[1743880150268,2.1871633,1793.9,1793.8,2.27506]
[1743880150578,2.1871633,1793.9,1793.8,3.02241928]
[1743880150879,2.1871633,1793.9,1793.8,1.52811928]
[1743880152281,2.1871633,1793.9,1793.8,1.52794873]
[1743880153383,2.1871633,1793.9,1793.8,3.00014873]
[1743880155787,2.1871633,1793.9,1793.8,2.99999782]
[1743880156686,2.1871633,1793.9,1793.8,1.52779782]
[1743880159487,2.1871633,1793.9,1793.8,1.52795705]
[1743880161186,2.1871633,1793.9,1793.8,0.78076]
[1743880161391,2.1871633,1793.9,1793.8,1.52841948]
[1743880162492,2.9678733,1793.9,1793.8,1.52841948]
[1743880163096,2.9678733,1793.9,1793.8,0.74784908]
[1743880163397,2.1871633,1793.9,1793.8,1.52860908]
[1743880163592,2.9678733,1793.9,1793.8,1.52860908]
[1743880163898,2.1871633,1793.9,1793.8,1.52860908]
[1743880164500,2.9678733,1793.9,1793.8,1.52860908]
[1743880164996,2.9678733,1793.9,1793.8,1.52879232]
[1743880166497,2.1871633,1793.9,1793.8,1.52879232]
[1743880168500,2.1871633,1793.9,1793.8,1.52910136]
[1743880170504,2.9678733,1793.9,1793.8,0.74860509]
[1743880171102,2.9678733,1793.9,1793.8,0.74867633]
[1743880172202,0.78078,1793.8,1793.6,3.98863]
[1743880172497,2.27758,1793.8,1793.7,1.52961892]
[1743880172900,2.27756,1793.8,1793.7,0.74881892]
[1743880173503,2.27756,1793.8,1793.7,1.52961892]
[1743880174002,2.27756,1793.8,1793.7,0.74881892]
[1743880175299,5.48536,1793.8,1793.7,0.74881892]
[1743880175502,7.98536,1793.8,1793.7,0.74881892]
[1743880179204,5.48536,1793.8,1793.7,0.74881892]
[1743880179608,0.78082,1793.7,1793.5,0.78088]
[1743880179805,2.24192,1793.7,1793.6,0.74918322]
[1743880183109,0.78089,1793.5,1793.4,1.5023]
[1743880183309,0.78089,1793.5,1793.4,2.25108489]
[1743880184714,2.21759,1793.5,1793.4,0.74878489]
[1743880185009,0.78098,1793.3,1793.2,4.6881]
[1743880185305,0.78098,1793.3,1793.2,5.43717593]
[1743880185705,2.96548,1793.3,1793.2,5.43717593]
[1743880187208,2.96548,1793.3,1793.2,2.22937593]
[1743880188516,2.96548,1793.3,1793.2,2.2285286]
[1743880188704,2.96548,1793.3,1793.2,3.7007286]
[1743880189403,2.96548,1793.3,1793.2,2.9525]
[1743880189804,2.96548,1793.3,1793.2,3.70073125]
[1743880190508,2.96548,1793.3,1793.2,2.95373125]
[1743880190806,0.78106,1793.1,1793.0,0.7482]
[1743880191011,0.78106,1793.1,1793.0,2.1393]
[1743880191211,0.78106,1793.1,1793.0,3.630677]
[1743880191413,0.78106,1793.1,1793.0,2.8822]
[1743880192112,0.78106,1793.1,1793.0,3.63086355]
[1743880192710,2.17145,1793.2,1793.0,3.66331]
[1743880192907,2.17145,1793.2,1793.1,1.4649]
[1743880193606,2.17145,1793.2,1793.1,2.21357559]
[1743880201411,0.78102,1793.2,1793.1,2.21357559]
[1743880201811,0.78102,1793.2,1793.1,2.21295639]
[1743880203522,0.78102,1793.2,1793.1,2.21305676]
[1743880203718,2.20721,1793.3,1793.1,2.99411676]
[1743880203919,2.20718,1793.3,1793.2,2.21535676]
[1743880204118,1.4262,1793.3,1793.2,2.99637676]
[1743880204321,2.20718,1793.3,1793.2,2.21535676]
[1743880205330,2.20718,1793.3,1793.2,2.21541763]
[1743880205532,2.20718,1793.3,1793.2,0.74821763]
[1743880207134,0.78102,1793.2,1793.1,1.4274]
[1743880207333,2.30942,1793.2,1793.1,2.17579395]
[1743880208938,2.30942,1793.2,1793.1,2.17597369]
[1743880210338,2.30942,1793.2,1793.1,0.74857369]
[1743880210642,0.78111,1793.0,1792.9,3.2161633]
[1743880210841,0.78111,1793.0,1792.9,3.96507808]
[1743880211237,2.18231,1793.0,1792.9,3.96507808]
[1743880211434,2.18231,1793.0,1792.9,0.75727808]
[1743880218134,2.18231,1793.0,1792.9,0.75725733]
[1743880219841,2.18231,1793.0,1792.9,0.75718176]
[1743880221544,0.78111,1793.0,1792.9,0.75718176]
[1743880221746,0.78111,1793.0,1792.9,1.47784158]
[1743880221946,0.78111,1793.0,1792.9,2.93494158]
[1743880223443,0.78111,1793.0,1792.9,2.1862633]
[1743880223644,0.78111,1793.0,1792.9,2.93492582]
[1743880223844,0.78111,1793.0,1792.9,3.71607582]
[1743880224044,0.78111,1793.0,1792.9,2.93492582]
[1743880225041,0.7811,1793.1,1792.9,3.71606582]
[1743880225237,0.7811,1793.1,1793.0,2.98156252]
[1743880227150,0.7811,1793.1,1793.0,2.98142564]
[1743880230753,0.7811,1793.1,1793.0,3.76263097]
[1743880231946,0.7811,1793.1,1793.0,3.7626729]
[1743880233453,0.7811,1793.1,1793.0,2.9815629]
[1743880233655,1.5362,1793.1,1793.0,2.9815629]
[1743880233853,2.3074,1793.1,1793.0,2.9815629]
[1743880234350,2.3074,1793.1,1793.0,0.7486629]
[1743880236260,0.78111,1793.0,1792.9,0.0083633]
[1743880236457,2.23011,1793.0,1792.9,0.75752103]
[1743880239865,2.23011,1793.0,1792.9,0.75768175]
[1743880240165,2.67533133,1793.0,1792.9,0.75768175]
[1743880241063,2.23011,1793.0,1792.9,0.75768175]
[1743880241659,2.23011,1793.0,1792.9,0.75770322]
[1743880247175,2.23011,1793.0,1792.9,0.75749831]
[1743880247472,2.23011,1793.0,1792.9,0.75747329]
[1743880248977,2.23011,1793.0,1792.9,0.75748526]
[1743880252768,2.23011,1793.0,1792.9,0.75740878]
[1743880253570,2.23011,1793.0,1792.9,0.75739982]
[1743880254671,2.23011,1793.0,1792.9,0.75745211]
[1743880256377,2.23011,1793.0,1792.9,0.75773343]
[1743880258183,2.23011,1793.0,1792.9,0.75779169]
[1743880258582,5.43791,1793.0,1792.9,0.75779169]
[1743880259984,5.43791,1793.0,1792.9,0.75797718]
[1743880260481,5.43791,1793.0,1792.9,2.94827718]
[1743880261286,5.43791,1793.0,1792.9,2.94834377]
[1743880261978,5.43791,1793.0,1792.9,0.75804377]
[1743880262484,5.43791,1793.0,1792.9,3.77e-06]
[1743880262986,0.78124,1792.7,1792.6,2.9589]
[1743880267087,5.45694,1792.7,1792.6,2.9589]
[1743880267984,3.98904,1792.7,1792.6,2.9589]
[1743880270189,0.78124,1792.7,1792.6,2.9589]
[1743880274487,0.78124,1792.7,1792.6,3.70336064]
[1743880275788,0.78124,1792.7,1792.6,3.70333011]
[1743880276194,3.9973933,1792.8,1792.6,4.48461011]
[1743880276492,0.7895933,1792.8,1792.7,2.26113011]
[1743880277492,0.7895933,1792.8,1792.7,2.26097495]
[1743880281097,0.7895933,1792.8,1792.7,2.26102968]
[1743880284407,0.7895533,1792.8,1792.7,3.04226968]
[1743880284704,0.0083633,1792.8,1792.7,3.04226968]
[1743880284902,0.0083633,1792.8,1792.7,3.04228474]
[1743880285104,0.7895533,1792.8,1792.7,2.26104474]
[1743880285302,0.7895533,1792.8,1792.7,3.04228474]
[1743880285506,0.0083633,1792.8,1792.7,2.26104474]
[1743880285807,0.0083633,1792.8,1792.7,3.04228474]
[1743880286607,0.7895533,1792.8,1792.7,2.26117368]
[1743880287009,0.0083633,1792.8,1792.7,3.04241368]
[1743880288409,0.0083633,1792.8,1792.7,3.0424412]
[1743880290208,0.0083633,1792.8,1792.7,3.04245075]
[1743880291406,0.0083633,1792.8,1792.7,3.04245472]
[1743880292005,0.7895533,1792.8,1792.7,3.04248427]
[1743880292516,0.7895533,1792.8,1792.7,2.26124427]
[1743880296815,2.2670533,1792.8,1792.7,2.26124427]
[1743880297416,2.2670533,1792.8,1792.7,0.74454427]
[1743880299319,0.78124,1792.7,1792.6,3.2078]
[1743880299512,2.22064,1792.7,1792.6,3.95286242]
[1743880299713,1.4394,1792.7,1792.6,6.15534242]
[1743880299914,1.4394,1792.7,1792.6,6.92324242]
[1743880300521,2.22064,1792.7,1792.6,6.92324242]
[1743880301419,2.22064,1792.7,1792.6,6.14196242]
[1743880301720,2.22064,1792.7,1792.6,6.92324242]
[1743880302018,1.4394,1792.7,1792.6,6.14196242]
[1743880302213,1.4394,1792.7,1792.6,6.92324242]
[1743880302418,2.22064,1792.7,1792.6,6.14196242]
[1743880303019,2.22064,1792.7,1792.6,6.92324242]
[1743880304122,1.4394,1792.7,1792.6,6.92324242]
[1743880304521,2.22064,1792.7,1792.6,6.92324242]
[1743880304821,1.4394,1792.7,1792.6,6.92324242]
[1743880305022,2.1878,1792.7,1792.6,6.92324242]
[1743880306122,2.1878,1792.7,1792.6,3.71544242]
[1743880306325,2.1878,1792.7,1792.6,6.92324242]
[1743880307524,2.1878,1792.7,1792.6,3.71544242]
[1743880307723,2.1878,1792.7,1792.6,6.92324242]
[1743880308422,2.1878,1792.7,1792.6,6.9241451]
[1743880310324,2.1878,1792.7,1792.6,6.92413253]
[1743880312127,2.1878,1792.7,1792.6,6.92413894]
[1743880313728,2.1878,1792.7,1792.6,6.92412711]
[1743880314125,2.1878,1792.7,1792.6,6.92412059]
[1743880314326,2.1878,1792.7,1792.6,3.71632059]
[1743880314627,2.1878,1792.7,1792.6,6.92412059]
[1743880316519,0.0083633,1792.8,1792.7,0.78124]
[1743880316724,0.0083633,1792.8,1792.7,3.71718059]
[1743880317623,0.0083633,1792.8,1792.7,2.97124]
[1743880317834,0.0083633,1792.8,1792.7,3.71657845]
[1743880322534,0.0083633,1792.8,1792.7,3.7161138]
[1743880326734,0.0083633,1792.8,1792.7,6.9239138]
[1743880328035,0.0083633,1792.8,1792.7,6.92369427]
[1743880329837,0.0083633,1792.8,1792.7,6.92390885]
[1743880332845,1.5405633,1792.8,1792.7,6.92390885]
[1743880335343,1.5405633,1792.8,1792.7,6.92404593]
[1743880337240,1.5405633,1792.8,1792.7,3.71626588]
[1743880339144,0.0083633,1792.8,1792.7,3.71626588]
[1743880342748,0.0083633,1792.8,1792.7,3.71636387]
[1743880344644,0.0083633,1792.8,1792.7,3.71652732]
[1743880346346,0.0083633,1792.8,1792.7,3.71704854]
[1743880348142,0.0083633,1792.8,1792.7,2.97124]
[1743880348349,0.0083633,1792.8,1792.7,3.71725168]
[1743880351851,0.0083633,1792.8,1792.7,3.71728983]
[1743880352242,0.0083633,1792.8,1792.7,6.92508983]
[1743880353749,0.0083633,1792.8,1792.7,6.92524891]
[1743880355555,0.0083633,1792.8,1792.7,6.92524083]
[1743880357254,0.7327633,1792.8,1792.7,6.92524083]
[1743880357552,0.7327633,1792.8,1792.7,6.92524042]
[1743880358659,1.5026633,1792.8,1792.7,6.92524042]
[1743880359254,1.5026633,1792.8,1792.7,3.71744815]
[1743880359456,1.5026633,1792.8,1792.7,6.92524815]
[1743880359753,1.5026633,1792.8,1792.7,4.73524815]
[1743880360955,1.5026633,1792.8,1792.7,4.73527168]
[1743880361561,1.5026633,1792.8,1792.7,1.52747168]
[1743880362861,1.5026633,1792.8,1792.7,1.52747191]
[1743880364663,1.5026633,1792.8,1792.7,1.52751344]
[1743880366261,0.7782633,1792.8,1792.7,4.73531344]
[1743880366463,0.7782633,1792.8,1792.7,6.98281344]
[1743880366657,3.2078,1793.3,1793.1,0.78103]
[1743880366862,2.2076,1793.2,1792.9,3.2078]
[1743880367066,2.2076,1793.2,1793.0,0.74606583]
[1743880367265,2.2076,1793.2,1793.1,0.74606583]
[1743880367467,2.2076,1793.2,1793.1,1.52712583]
[1743880367667,3.2078,1793.6,1793.4,0.7809]
[1743880367868,2.9417,1793.5,1793.4,0.7809]
[1743880368072,2.9417,1793.5,1793.4,1.52616861]
[1743880368276,2.9417,1793.5,1793.4,1.52532407]
[1743880369276,2.9417,1793.5,1793.4,0.74442407]
[1743880369463,2.9417,1793.5,1793.4,1.52535407]
[1743880370366,2.9417,1793.5,1793.4,1.52460116]
[1743880370873,2.9417,1793.5,1793.4,0.74367116]
[1743880371874,2.9417,1793.5,1793.4,0.74338491]
[1743880373876,2.9417,1793.5,1793.4,0.74300619]
[1743880374170,3.72259,1793.5,1793.4,0.74300619]
[1743880375672,3.72259,1793.5,1793.4,1.5236656]
[1743880376079,2.9417,1793.5,1793.4,1.5236656]
[1743880377279,2.9417,1793.5,1793.4,0.7427356]
[1743880377778,3.72259,1793.5,1793.4,0.7427356]
[1743880378279,2.9417,1793.5,1793.4,0.7427356]
[1743880378871,3.72259,1793.5,1793.4,0.7427356]
[1743880379479,3.72259,1793.5,1793.4,0.74233022]
[1743880380880,3.72259,1793.5,1793.4,0.74225387]
[1743880383881,3.72259,1793.5,1793.4,0.74183743]
[1743880385181,2.9417,1793.5,1793.3,0.78098]
[1743880385383,2.19883,1793.4,1793.2,3.98878]